[Event "*** Titled Tuesday Blitz"]
[Site "Chess.com"]
[Date "2020.05.19"]
[Round "5"]
[White "IMTominho"]
[Black "AminMolaei"]
[Result "0-1"]
[WhiteElo "2830"]
[BlackElo "2643"]
[TimeControl "180+1"]
[EndTime "12:59:23 PDT"]
[Termination "AminMolaei won by resignation"]

1. d4 {[%clk 0:03:00.9]} 1... e6 {[%clk 0:02:59.8]} 2. Nf3 {[%clk 0:03:00.5]}
2... f5 {[%clk 0:02:59.3]} 3. g3 {[%clk 0:02:58]} 3... b6 {[%clk 0:02:58.2]} 4.
Bg2 {[%clk 0:02:58]} 4... Bb7 {[%clk 0:02:58.7]} 5. O-O {[%clk 0:02:57]} 5...
Nf6 {[%clk 0:02:59.3]} 6. c4 {[%clk 0:02:54.4]} 6... Be7 {[%clk 0:02:59.7]} 7.
Nc3 {[%clk 0:02:52]} 7... O-O {[%clk 0:03:00.1]} 8. d5 {[%clk 0:02:47.8]} 8...
a5 {[%clk 0:03:00.4]} 9. Bf4 {[%clk 0:02:45.4]} 9... Na6 {[%clk 0:02:59.5]} 10.
Nd4 {[%clk 0:02:42.8]} 10... Qc8 {[%clk 0:02:57.9]} 11. Rc1 {[%clk 0:02:39.2]}
11... Nc5 {[%clk 0:02:33]} 12. Ncb5 {[%clk 0:02:39.1]} 12... Ne8 {[%clk
0:02:18.6]} 13. Qc2 {[%clk 0:02:38.7]} 13... Bf6 {[%clk 0:02:10.3]} 14. Nb3
{[%clk 0:02:36.9]} 14... Nxb3 {[%clk 0:01:55.6]} 15. axb3 {[%clk 0:02:37.8]}
15... e5 {[%clk 0:01:53.3]} 16. Bd2 {[%clk 0:02:35.8]} 16... d6 {[%clk
0:01:53.2]} 17. e4 {[%clk 0:02:28.1]} 17... f4 {[%clk 0:01:29.8]} 18. gxf4
{[%clk 0:02:29]} 18... exf4 {[%clk 0:01:29.8]} 19. Bxf4 {[%clk 0:02:27.7]} 19...
Be5 {[%clk 0:01:30]} 20. Bg3 {[%clk 0:02:22.4]} 20... Qg4 {[%clk 0:01:26.6]} 21.
Qd1 {[%clk 0:02:15.8]} 21... Qxd1 {[%clk 0:01:19.6]} 22. Rcxd1 {[%clk
0:02:16.7]} 22... Bxb2 {[%clk 0:01:19.6]} 23. f4 {[%clk 0:02:17.2]} 23... a4
{[%clk 0:01:16.3]} 24. bxa4 {[%clk 0:02:13.1]} 24... Rxa4 {[%clk 0:01:17.2]} 25.
Rb1 {[%clk 0:02:13.1]} 25... Ba3 {[%clk 0:01:11.4]} 26. Nxa3 {[%clk 0:02:08.4]}
26... Rxa3 {[%clk 0:01:12.3]} 27. e5 {[%clk 0:02:07.6]} 27... Bc8 {[%clk
0:01:07.2]} 28. Ra1 {[%clk 0:02:02.7]} 28... Rc3 {[%clk 0:01:03.1]} 29. Rfc1
{[%clk 0:02:00.7]} 29... Rxc1+ {[%clk 0:00:58.8]} 30. Rxc1 {[%clk 0:02:01.6]}
30... g6 {[%clk 0:00:59.2]} 31. Ra1 {[%clk 0:01:53.2]} 31... Bg4 {[%clk
0:00:40.1]} 32. Ra7 {[%clk 0:01:49.8]} 32... Be2 {[%clk 0:00:38.8]} 33. Ra4
{[%clk 0:01:45.7]} 33... Ng7 {[%clk 0:00:33.4]} 34. Kf2 {[%clk 0:01:44.9]} 34...
Bd1 {[%clk 0:00:30.4]} 35. Ra1 {[%clk 0:01:43.5]} 35... Bb3 {[%clk 0:00:28.1]}
36. Ra7 {[%clk 0:00:59.4]} 36... Rc8 {[%clk 0:00:21.1]} 37. Bh3 {[%clk
0:00:56.1]} 37... Nf5 {[%clk 0:00:20.9]} 38. Bf1 {[%clk 0:00:52.9]} 38... dxe5
{[%clk 0:00:16.8]} 39. fxe5 {[%clk 0:00:52.6]} 39... b5 {[%clk 0:00:17.3]} 40.
d6 {[%clk 0:00:38.9]} 40... cxd6 {[%clk 0:00:14.7]} 41. exd6 {[%clk 0:00:39.8]}
41... Nxg3 {[%clk 0:00:11.4]} 42. hxg3 {[%clk 0:00:35.1]} 42... bxc4 {[%clk
0:00:10.5]} 43. Bh3 {[%clk 0:00:30.1]} 43... Rd8 {[%clk 0:00:10.2]} 44. d7
{[%clk 0:00:29.4]} 44... Kf7 {[%clk 0:00:09.4]} 45. Rc7 {[%clk 0:00:27.4]} 45...
Ke7 {[%clk 0:00:08.8]} 46. Ke3 {[%clk 0:00:25.7]} 46... Ba4 {[%clk 0:00:06.1]}
47. Rxc4 {[%clk 0:00:23.5]} 47... Bxd7 {[%clk 0:00:06.4]} 48. Bg2 {[%clk
0:00:18.6]} 48... Be6 {[%clk 0:00:05.5]} 49. Rc7+ {[%clk 0:00:17.9]} 49... Rd7
{[%clk 0:00:06]} 50. Rc5 {[%clk 0:00:18.3]} 50... Ra7 {[%clk 0:00:05.9]} 51. Be4
{[%clk 0:00:17.4]} 51... Kf6 {[%clk 0:00:06]} 52. Rc6 {[%clk 0:00:16.8]} 52...
Ke5 {[%clk 0:00:05.5]} 53. Rc5+ {[%clk 0:00:16.7]} 53... Kf6 {[%clk 0:00:05.9]}
54. Rb5 {[%clk 0:00:16.4]} 54... Ra3+ {[%clk 0:00:06]} 55. Kf2 {[%clk 0:00:15]}
55... g5 {[%clk 0:00:05.5]} 56. Bxh7 {[%clk 0:00:13.3]} 56... g4 {[%clk
0:00:05.7]} 57. Be4 {[%clk 0:00:12]} 57... Ra2+ {[%clk 0:00:04.6]} 58. Ke3
{[%clk 0:00:12.1]} 58... Ra3+ {[%clk 0:00:05.5]} 59. Kf4 {[%clk 0:00:12.5]}
59... Ra4 {[%clk 0:00:05.9]} 60. Rb6 {[%clk 0:00:11.6]} 60... Rc4 {[%clk
0:00:06.2]} 61. Ke3 {[%clk 0:00:11.7]} 61... Ke5 {[%clk 0:00:06]} 62. Bh7 {[%clk
0:00:10.2]} 62... Rc3+ {[%clk 0:00:05.4]} 63. Kf2 {[%clk 0:00:10.4]} 63... Ra3
{[%clk 0:00:06.3]} 64. Rb5+ {[%clk 0:00:10.2]} 64... Bd5 {[%clk 0:00:06]} 65.
Rb2 {[%clk 0:00:11.1]} 65... Rf3+ {[%clk 0:00:06.4]} 66. Ke1 {[%clk 0:00:10]}
66... Rxg3 {[%clk 0:00:06.8]} 67. Rb8 {[%clk 0:00:09.6]} 67... Re3+ {[%clk
0:00:06.5]} 68. Kf2 {[%clk 0:00:09.5]} 68... Rf3+ {[%clk 0:00:07.1]} 69. Ke2
{[%clk 0:00:10]} 69... Kf4 {[%clk 0:00:07.3]} 70. Rd8 {[%clk 0:00:08.9]} 70...
Bc4+ {[%clk 0:00:07.1]} 71. Ke1 {[%clk 0:00:07.9]} 71... Kg3 {[%clk 0:00:07.5]}
72. Rg8 {[%clk 0:00:05.2]} 72... Bf1 {[%clk 0:00:07.4]} 73. Rg7 {[%clk
0:00:03.3]} 73... Bh3 {[%clk 0:00:07.9]} 74. Be4 {[%clk 0:00:03.6]} 74... Re3+
{[%clk 0:00:08]} 75. Kd2 {[%clk 0:00:04.2]} 75... Rxe4 {[%clk 0:00:08.9]} 76.
Kd3 {[%clk 0:00:04.2]} 76... Rf4 {[%clk 0:00:09.8]} 77. Ke3 {[%clk 0:00:03.4]}
77... Rf3+ {[%clk 0:00:10.7]} 78. Ke2 {[%clk 0:00:03.8]} 78... Kh2 {[%clk
0:00:11]} 79. Ke1 {[%clk 0:00:02.9]} 79... Rg3 {[%clk 0:00:11.1]} 80. Kf2 {[%clk
0:00:02.3]} 80... Rg1 {[%clk 0:00:12]} 81. Ke2 {[%clk 0:00:02.3]} 81... Rg2+
{[%clk 0:00:12.1]} 82. Ke3 {[%clk 0:00:02]} 82... g3 {[%clk 0:00:12.6]} 83. Kf3
{[%clk 0:00:02.1]} 83... Rf2+ {[%clk 0:00:12.9]} 84. Ke3 {[%clk 0:00:02.6]}
84... Rf5 {[%clk 0:00:12.9]} 85. Ke4 {[%clk 0:00:02.7]} 85... g2 {[%clk
0:00:12.6]} 86. Rxg2+ {[%clk 0:00:03.6]} 86... Kxg2 {[%clk 0:00:12.6]} 0-1

[Event "*** Titled Tuesday Blitz"]
[Site "Chess.com"]
[Date "2020.05.19"]
[Round "5"]
[White "garicradomir"]
[Black "PotapovaM"]
[Result "1-0"]
[WhiteElo "2293"]
[BlackElo "2416"]
[TimeControl "180+1"]
[EndTime "12:59:25 PDT"]
[Termination "garicradomir won on time"]

1. e4 {[%clk 0:03:00.9]} 1... c5 {[%clk 0:02:59]} 2. Nf3 {[%clk 0:03:00.9]} 2...
d6 {[%clk 0:02:59.4]} 3. Bb5+ {[%clk 0:03:00.7]} 3... Nd7 {[%clk 0:02:58.9]} 4.
Ba4 {[%clk 0:02:57.1]} 4... Nf6 {[%clk 0:02:58.2]} 5. O-O {[%clk 0:02:56.6]}
5... g6 {[%clk 0:02:58.6]} 6. Re1 {[%clk 0:02:50.8]} 6... Bg7 {[%clk 0:02:58.7]}
7. c4 {[%clk 0:02:50.9]} 7... O-O {[%clk 0:02:58.7]} 8. Nc3 {[%clk 0:02:50]}
8... a6 {[%clk 0:02:58.7]} 9. d3 {[%clk 0:02:49.2]} 9... Ne5 {[%clk 0:02:58.9]}
10. a3 {[%clk 0:02:46.4]} 10... Bd7 {[%clk 0:02:53]} 11. Bxd7 {[%clk 0:02:44.2]}
11... Qxd7 {[%clk 0:02:53.9]} 12. Rb1 {[%clk 0:02:42.7]} 12... b5 {[%clk
0:02:50.9]} 13. b3 {[%clk 0:02:36.1]} 13... Nfg4 {[%clk 0:02:42.4]} 14. Nd5
{[%clk 0:02:28.5]} 14... Nxf3+ {[%clk 0:02:39]} 15. Qxf3 {[%clk 0:02:25]} 15...
Ne5 {[%clk 0:02:39.5]} 16. Qg3 {[%clk 0:02:18.1]} 16... Rab8 {[%clk 0:02:36.2]}
17. Bg5 {[%clk 0:02:15.3]} 17... f6 {[%clk 0:02:29.8]} 18. Bf4 {[%clk
0:02:13.9]} 18... Nc6 {[%clk 0:02:24.7]} 19. Be3 {[%clk 0:02:05.6]} 19... e6
{[%clk 0:02:18.7]} 20. Qh3 {[%clk 0:02:03.7]} 20... Ne5 {[%clk 0:02:17.5]} 21.
Nf4 {[%clk 0:01:57.4]} 21... Rfe8 {[%clk 0:02:07.2]} 22. Red1 {[%clk 0:01:56.3]}
22... Rb7 {[%clk 0:01:36.4]} 23. cxb5 {[%clk 0:01:47.8]} 23... Rxb5 {[%clk
0:01:32.2]} 24. d4 {[%clk 0:01:47.9]} 24... cxd4 {[%clk 0:01:30.5]} 25. Bxd4
{[%clk 0:01:46.7]} 25... Nc6 {[%clk 0:01:24.3]} 26. Ba1 {[%clk 0:01:43.4]} 26...
Qe7 {[%clk 0:01:06.7]} 27. Rbc1 {[%clk 0:01:38.2]} 27... Ne5 {[%clk 0:01:05.7]}
28. b4 {[%clk 0:01:27.7]} 28... a5 {[%clk 0:01:01.6]} 29. Bxe5 {[%clk
0:01:16.2]} 29... fxe5 {[%clk 0:00:52.4]} 30. Nd3 {[%clk 0:01:16.4]} 30... axb4
{[%clk 0:00:51.6]} 31. Nxb4 {[%clk 0:01:12.9]} 31... Ra8 {[%clk 0:00:44.7]} 32.
Rc3 {[%clk 0:01:09]} 32... Rc5 {[%clk 0:00:16]} 33. Rcd3 {[%clk 0:01:03.8]}
33... Bf8 {[%clk 0:00:12.3]} 34. g3 {[%clk 0:01:03.6]} 34... Rc4 {[%clk
0:00:12.1]} 35. Qf1 {[%clk 0:01:03.2]} 35... Rxe4 {[%clk 0:00:10.6]} 36. Rxd6
{[%clk 0:01:00.2]} 36... Rxa3 {[%clk 0:00:07.5]} 37. Nc6 {[%clk 0:00:46.2]}
37... Qxd6 {[%clk 0:00:07.7]} 38. Rxd6 {[%clk 0:00:46.7]} 38... Bxd6 {[%clk
0:00:08.6]} 39. Qb5 {[%clk 0:00:40.6]} 39... Ra1+ {[%clk 0:00:07]} 40. Kg2
{[%clk 0:00:40.7]} 40... Ree1 {[%clk 0:00:07]} 41. Nd8 {[%clk 0:00:30.8]} 41...
Kf8 {[%clk 0:00:02.2]} 42. Qd7 {[%clk 0:00:29.3]} 42... Be7 {[%clk 0:00:01.9]}
43. Nxe6+ {[%clk 0:00:28.8]} 43... Kg8 {[%clk 0:00:01.1]} 44. Nd8 {[%clk
0:00:29.3]} 44... Rg1+ {[%clk 0:00:01.5]} 45. Kh3 {[%clk 0:00:28.7]} 45... Bxd8
{[%clk 0:00:01.9]} 46. Qxd8+ {[%clk 0:00:29.6]} 46... Kf7 {[%clk 0:00:01.2]} 47.
Qd7+ {[%clk 0:00:27.1]} 47... Kg8 {[%clk 0:00:01.5]} 48. Qe6+ {[%clk 0:00:26.5]}
48... Kg7 {[%clk 0:00:02.1]} 49. Qxe5+ {[%clk 0:00:25.3]} 49... Kf7 {[%clk
0:00:03]} 50. Qc7+ {[%clk 0:00:23.7]} 50... Kg8 {[%clk 0:00:02.8]} 51. Qe7
{[%clk 0:00:23.3]} 51... Rgf1 {[%clk 0:00:02]} 52. f4 {[%clk 0:00:22.5]} 52...
Rfe1 {[%clk 0:00:01.9]} 53. Qd8+ {[%clk 0:00:21.3]} 53... Kg7 {[%clk 0:00:02.1]}
54. Kg4 {[%clk 0:00:22.2]} 54... h5+ {[%clk 0:00:02]} 55. Kh4 {[%clk 0:00:20.2]}
55... Rec1 {[%clk 0:00:02.9]} 56. Qe7+ {[%clk 0:00:19.5]} 56... Kg8 {[%clk
0:00:02.8]} 57. Qg5 {[%clk 0:00:16.7]} 57... Kf7 {[%clk 0:00:02.7]} 58. f5
{[%clk 0:00:14.7]} 58... gxf5 {[%clk 0:00:02]} 59. Qxf5+ {[%clk 0:00:14.8]}
59... Ke7 {[%clk 0:00:02.9]} 60. Qxh5 {[%clk 0:00:14.9]} 60... Kf6 {[%clk
0:00:02.6]} 61. Qh6+ {[%clk 0:00:14.5]} 61... Kf7 {[%clk 0:00:02.6]} 62. Qf4+
{[%clk 0:00:15.4]} 62... Ke6 {[%clk 0:00:03.5]} 63. h3 {[%clk 0:00:15.3]} 63...
Ke7 {[%clk 0:00:04.4]} 64. Qe5+ {[%clk 0:00:14.7]} 64... Kf7 {[%clk 0:00:04.5]}
65. Kg5 {[%clk 0:00:13.7]} 65... Re1 {[%clk 0:00:03.6]} 66. Qc7+ {[%clk
0:00:12.3]} 66... Ke6 {[%clk 0:00:03.7]} 67. g4 {[%clk 0:00:12.2]} 67... Re5+
{[%clk 0:00:03.1]} 68. Kg6 {[%clk 0:00:11.7]} 68... Ree1 {[%clk 0:00:03.4]} 69.
Qc6+ {[%clk 0:00:11.4]} 69... Ke5 {[%clk 0:00:03.3]} 70. h4 {[%clk 0:00:11.7]}
70... Rg1 {[%clk 0:00:03.9]} 71. g5 {[%clk 0:00:10.8]} 71... Rac1 {[%clk
0:00:03.9]} 72. Qb5+ {[%clk 0:00:09.6]} 72... Kd4 {[%clk 0:00:03.8]} 73. h5
{[%clk 0:00:09.2]} 73... Rh1 {[%clk 0:00:04]} 74. Qb4+ {[%clk 0:00:08.8]} 74...
Ke5 {[%clk 0:00:03.4]} 75. Kh6 {[%clk 0:00:08.3]} 75... Rc6+ {[%clk 0:00:03.6]}
76. g6 {[%clk 0:00:07.9]} 76... Rcc1 {[%clk 0:00:03.7]} 77. Qb5+ {[%clk
0:00:07.7]} 77... Ke4 {[%clk 0:00:03.2]} 78. Qg5 {[%clk 0:00:06.8]} 78... Rcg1
{[%clk 0:00:02.4]} 79. Qe7+ {[%clk 0:00:06.4]} 79... Kd5 {[%clk 0:00:02.9]} 80.
Qf7+ {[%clk 0:00:06.1]} 80... Ke5 {[%clk 0:00:03.3]} 81. g7 {[%clk 0:00:07]}
81... Rh2 {[%clk 0:00:01.2]} 82. g8=Q {[%clk 0:00:06.3]} 82... Rxg8 {[%clk
0:00:02.1]} 83. Qxg8 {[%clk 0:00:06.4]} 83... Rf2 {[%clk 0:00:02.6]} 84. Qg7+
{[%clk 0:00:06]} 84... Rf6+ {[%clk 0:00:02.7]} 85. Qg6 {[%clk 0:00:06.9]} 85...
Ke6 {[%clk 0:00:02.2]} 86. Kg7 {[%clk 0:00:06]} 1-0

[Event "*** Titled Tuesday Blitz"]
[Site "Chess.com"]
[Date "2020.05.19"]
[Round "5"]
[White "jonaszmb"]
[Black "Orest_Vovk"]
[Result "1-0"]
[WhiteElo "2521"]
[BlackElo "2359"]
[TimeControl "180+1"]
[EndTime "12:59:28 PDT"]
[Termination "jonaszmb won by checkmate"]

1. e4 {[%clk 0:03:00.9]} 1... Nf6 {[%clk 0:02:56.2]} 2. e5 {[%clk 0:03:00.5]}
2... Nd5 {[%clk 0:02:55.8]} 3. d4 {[%clk 0:03:01.1]} 3... d6 {[%clk 0:02:55.4]}
4. Bc4 {[%clk 0:03:01.7]} 4... dxe5 {[%clk 0:02:52.6]} 5. dxe5 {[%clk
0:03:01.2]} 5... c6 {[%clk 0:02:52.8]} 6. Nf3 {[%clk 0:02:59.5]} 6... g6 {[%clk
0:02:51.6]} 7. Nc3 {[%clk 0:02:52.4]} 7... Be6 {[%clk 0:02:12.3]} 8. Ng5 {[%clk
0:02:06.2]} 8... Bg7 {[%clk 0:02:07.6]} 9. Nxe6 {[%clk 0:01:49.6]} 9... fxe6
{[%clk 0:02:08.5]} 10. O-O {[%clk 0:01:31.6]} 10... O-O {[%clk 0:02:06.7]} 11.
f4 {[%clk 0:01:22.3]} 11... b5 {[%clk 0:01:36]} 12. Bb3 {[%clk 0:01:20.7]} 12...
Na6 {[%clk 0:01:31.4]} 13. Ne4 {[%clk 0:01:19]} 13... Qb6+ {[%clk 0:01:16.6]}
14. Kh1 {[%clk 0:01:19]} 14... Nc5 {[%clk 0:00:53.5]} 15. Nxc5 {[%clk 0:01:19]}
15... Qxc5 {[%clk 0:00:53.2]} 16. Qg4 {[%clk 0:01:06.6]} 16... Rf5 {[%clk
0:00:53]} 17. Bd2 {[%clk 0:00:58.1]} 17... Raf8 {[%clk 0:00:44.1]} 18. g3 {[%clk
0:00:57.1]} 18... Kf7 {[%clk 0:00:37.8]} 19. Qe2 {[%clk 0:00:53.6]} 19... h5
{[%clk 0:00:33.9]} 20. c4 {[%clk 0:00:51.6]} 20... bxc4 {[%clk 0:00:29]} 21.
Bxc4 {[%clk 0:00:52.5]} 21... Nb4 {[%clk 0:00:11.3]} 22. Bxb4 {[%clk 0:00:39.6]}
22... Qxb4 {[%clk 0:00:12.2]} 23. Qe4 {[%clk 0:00:29.5]} 23... Qb6 {[%clk
0:00:09]} 24. Rfd1 {[%clk 0:00:28.3]} 24... Kg8 {[%clk 0:00:09]} 25. Bxe6+
{[%clk 0:00:28.1]} 25... Kh7 {[%clk 0:00:09.6]} 26. Bxf5 {[%clk 0:00:28.2]}
26... Rxf5 {[%clk 0:00:10.5]} 27. Rac1 {[%clk 0:00:25.2]} 27... Qxb2 {[%clk
0:00:09.4]} 28. Rxc6 {[%clk 0:00:22.3]} 28... Qxa2 {[%clk 0:00:09.1]} 29. h3
{[%clk 0:00:19.2]} 29... Qf2 {[%clk 0:00:07.7]} 30. Qg2 {[%clk 0:00:13]} 30...
Qe3 {[%clk 0:00:07.8]} 31. Rcc1 {[%clk 0:00:05.8]} 31... h4 {[%clk 0:00:07.6]}
32. Re1 {[%clk 0:00:04.6]} 32... Qxg3 {[%clk 0:00:07.6]} 33. Qxg3 {[%clk
0:00:05.2]} 33... hxg3 {[%clk 0:00:08.5]} 34. Re4 {[%clk 0:00:05.4]} 34... Bh6
{[%clk 0:00:08]} 35. Rc7 {[%clk 0:00:05.5]} 35... Bxf4 {[%clk 0:00:08.2]} 36.
Rxe7+ {[%clk 0:00:05.7]} 36... Kh6 {[%clk 0:00:08.8]} 37. Kg2 {[%clk 0:00:06.2]}
37... Bg5 {[%clk 0:00:07.8]} 38. Rxa7 {[%clk 0:00:05.8]} 38... Rf2+ {[%clk
0:00:07.9]} 39. Kxg3 {[%clk 0:00:05.1]} 39... Rb2 {[%clk 0:00:07]} 40. e6 {[%clk
0:00:05.1]} 40... Rb3+ {[%clk 0:00:06.7]} 41. Kg2 {[%clk 0:00:04.9]} 41... Rb2+
{[%clk 0:00:06.8]} 42. Kf1 {[%clk 0:00:05.2]} 42... Rb3 {[%clk 0:00:05.4]} 43.
e7 {[%clk 0:00:04.8]} 43... Bxe7 {[%clk 0:00:05.3]} 44. Raxe7 {[%clk 0:00:05]}
44... Rxh3 {[%clk 0:00:04.5]} 45. Kg2 {[%clk 0:00:05.6]} 45... Rb3 {[%clk
0:00:04.4]} 46. Re3 {[%clk 0:00:05.8]} 46... Rb2+ {[%clk 0:00:04.2]} 47. Kg3
{[%clk 0:00:05.7]} 47... Rb4 {[%clk 0:00:04.1]} 48. R7e4 {[%clk 0:00:05.7]}
48... Rb5 {[%clk 0:00:04.1]} 49. Kf3 {[%clk 0:00:05.8]} 49... Rf5+ {[%clk
0:00:03.6]} 50. Rf4 {[%clk 0:00:05.9]} 50... Ra5 {[%clk 0:00:04.5]} 51. Rg4
{[%clk 0:00:06.2]} 51... Rf5+ {[%clk 0:00:04.4]} 52. Kg3 {[%clk 0:00:06.1]}
52... Ra5 {[%clk 0:00:05.3]} 53. Re6 {[%clk 0:00:06.2]} 53... Kh5 {[%clk
0:00:05.3]} 54. Rgxg6 {[%clk 0:00:04.3]} 54... Ra3+ {[%clk 0:00:05.2]} 55. Kf2
{[%clk 0:00:04.7]} 55... Ra2+ {[%clk 0:00:05.4]} 56. Ke3 {[%clk 0:00:04.5]}
56... Ra3+ {[%clk 0:00:05.8]} 57. Kd2 {[%clk 0:00:05]} 57... Ra4 {[%clk
0:00:06.7]} 58. Rh6+ {[%clk 0:00:04]} 58... Kg5 {[%clk 0:00:07]} 59. Rhg6+
{[%clk 0:00:04.7]} 59... Kh5 {[%clk 0:00:07.4]} 60. Rgf6 {[%clk 0:00:05.6]}
60... Kg5 {[%clk 0:00:07.1]} 61. Rf8 {[%clk 0:00:05]} 61... Ra2+ {[%clk
0:00:06.2]} 62. Kc3 {[%clk 0:00:05]} 62... Ra5 {[%clk 0:00:06.8]} 63. Ree8
{[%clk 0:00:05.2]} 63... Ra3+ {[%clk 0:00:06.8]} 64. Kb4 {[%clk 0:00:05.4]}
64... Ra1 {[%clk 0:00:06.6]} 65. Rc8 {[%clk 0:00:06.3]} 65... Kg6 {[%clk
0:00:06.7]} 66. Rc4 {[%clk 0:00:05.1]} 66... Rb1+ {[%clk 0:00:04.1]} 67. Kc5
{[%clk 0:00:05.3]} 67... Kg7 {[%clk 0:00:05]} 68. Rcf4 {[%clk 0:00:05.1]} 68...
Rc1+ {[%clk 0:00:04.8]} 69. Kd4 {[%clk 0:00:04.6]} 69... Rd1+ {[%clk 0:00:05.1]}
70. Ke3 {[%clk 0:00:05.1]} 70... Re1+ {[%clk 0:00:05.3]} 71. Kd2 {[%clk
0:00:05.5]} 71... Re7 {[%clk 0:00:05.9]} 72. R8f5 {[%clk 0:00:05.5]} 72... Kg6
{[%clk 0:00:05.5]} 73. Rf1 {[%clk 0:00:05.7]} 73... Rd7+ {[%clk 0:00:05.3]} 74.
Ke3 {[%clk 0:00:06.3]} 74... Re7+ {[%clk 0:00:05.5]} 75. Kd4 {[%clk 0:00:06.9]}
75... Ra7 {[%clk 0:00:04.8]} 76. R5f2 {[%clk 0:00:06.1]} 76... Ra4+ {[%clk
0:00:04.5]} 77. Kc5 {[%clk 0:00:06.5]} 77... Ra5+ {[%clk 0:00:03.1]} 78. Kb6
{[%clk 0:00:06.5]} 78... Rg5 {[%clk 0:00:04]} 79. Rf6+ {[%clk 0:00:06.1]} 79...
Kg7 {[%clk 0:00:04.3]} 80. Rc6 {[%clk 0:00:06.2]} 80... Rg2 {[%clk 0:00:03.3]}
81. Rd1 {[%clk 0:00:05.9]} 81... Rb2+ {[%clk 0:00:02.8]} 82. Kc7 {[%clk
0:00:06.4]} 82... Ra2 {[%clk 0:00:02.7]} 83. Rd7+ {[%clk 0:00:06.6]} 83... Kf8
{[%clk 0:00:03.4]} 84. Kd6 {[%clk 0:00:06.7]} 84... Rd2+ {[%clk 0:00:02.7]} 85.
Ke6 {[%clk 0:00:07.1]} 85... Re2+ {[%clk 0:00:02.9]} 86. Kf5 {[%clk 0:00:07.6]}
86... Re8 {[%clk 0:00:03.8]} 87. Rh6 {[%clk 0:00:06.5]} 87... Kg8 {[%clk
0:00:03.7]} 88. Rhh7 {[%clk 0:00:06.4]} 88... Ra8 {[%clk 0:00:02.2]} 89. Rdg7+
{[%clk 0:00:05.8]} 89... Kf8 {[%clk 0:00:02.5]} 90. Rh8+ {[%clk 0:00:06.7]}
90... Kxg7 {[%clk 0:00:02.7]} 91. Rxa8 {[%clk 0:00:07.6]} 91... Kh6 {[%clk
0:00:03.2]} 92. Ra7 {[%clk 0:00:07.6]} 92... Kh5 {[%clk 0:00:03.2]} 93. Rh7#
{[%clk 0:00:08.5]} 1-0

[Event "*** Titled Tuesday Blitz"]
[Site "Chess.com"]
[Date "2020.05.19"]
[Round "6"]
[White "Piotrek1979"]
[Black "damayito"]
[Result "1-0"]
[WhiteElo "2363"]
[BlackElo "1631"]
[TimeControl "180+1"]
[EndTime "13:04:42 PDT"]
[Termination "Piotrek1979 won by resignation"]

1. e4 {[%clk 0:03:00.9]} 1... e6 {[%clk 0:02:40]} 2. d3 {[%clk 0:02:53.8]} 2...
d5 {[%clk 0:02:39.9]} 3. Nd2 {[%clk 0:02:53.7]} 3... Nf6 {[%clk 0:02:38.9]} 4.
Ngf3 {[%clk 0:02:53.5]} 4... dxe4 {[%clk 0:02:38.6]} 5. dxe4 {[%clk 0:02:52.8]}
5... Nc6 {[%clk 0:02:36.3]} 6. Bb5 {[%clk 0:02:51.8]} 6... Bc5 {[%clk
0:02:32.3]} 7. O-O {[%clk 0:02:50.5]} 7... O-O {[%clk 0:02:31.9]} 8. c3 {[%clk
0:02:37.5]} 8... Bd7 {[%clk 0:02:31.4]} 9. Qe2 {[%clk 0:02:34.2]} 9... a6 {[%clk
0:02:31.2]} 10. Bd3 {[%clk 0:02:27.6]} 10... e5 {[%clk 0:02:25.7]} 11. Nb3
{[%clk 0:02:24.2]} 11... Bb6 {[%clk 0:02:23.3]} 12. Be3 {[%clk 0:02:23.8]} 12...
Ba7 {[%clk 0:02:18.7]} 13. Nc5 {[%clk 0:02:10.7]} 13... Re8 {[%clk 0:02:12.5]}
14. Nxb7 {[%clk 0:02:00.5]} 14... Qb8 {[%clk 0:02:11]} 15. Nc5 {[%clk
0:02:00.2]} 15... Qxb2 {[%clk 0:02:09.5]} 16. Qxb2 {[%clk 0:01:58.8]} 16... Rab8
{[%clk 0:02:07.4]} 17. Qe2 {[%clk 0:01:56.1]} 1-0

[Event "*** Titled Tuesday Blitz"]
[Site "Chess.com"]
[Date "2020.05.19"]
[Round "6"]
[White "mamey78"]
[Black "MomchilPetkov"]
[Result "1-0"]
[WhiteElo "2392"]
[BlackElo "2523"]
[TimeControl "180+1"]
[EndTime "13:05:11 PDT"]
[Termination "mamey78 won by checkmate"]

1. e4 {[%clk 0:02:59.1]} 1... c5 {[%clk 0:02:58.5]} 2. Nf3 {[%clk 0:02:58.2]}
2... d6 {[%clk 0:02:58.7]} 3. d4 {[%clk 0:02:57.6]} 3... cxd4 {[%clk 0:02:59.6]}
4. Nxd4 {[%clk 0:02:57.7]} 4... Nf6 {[%clk 0:03:00.5]} 5. Nc3 {[%clk 0:02:57.9]}
5... a6 {[%clk 0:02:57.8]} 6. Bg5 {[%clk 0:02:57.4]} 6... Nbd7 {[%clk
0:02:57.3]} 7. Qe2 {[%clk 0:02:56.6]} 7... Qc7 {[%clk 0:02:56.2]} 8. O-O-O
{[%clk 0:02:55.1]} 8... e6 {[%clk 0:02:55.3]} 9. f4 {[%clk 0:02:52.4]} 9... b5
{[%clk 0:02:54]} 10. g4 {[%clk 0:02:52.1]} 10... b4 {[%clk 0:02:32.3]} 11. Nd5
{[%clk 0:02:50]} 11... exd5 {[%clk 0:01:58.7]} 12. exd5+ {[%clk 0:02:50.9]}
12... Be7 {[%clk 0:01:59.1]} 13. Nf5 {[%clk 0:02:43.4]} 13... Nc5 {[%clk
0:01:59.2]} 14. Nxg7+ {[%clk 0:02:40.8]} 14... Kf8 {[%clk 0:01:59.1]} 15. Bh6
{[%clk 0:02:18.7]} 15... Kg8 {[%clk 0:01:59.2]} 16. Nh5 {[%clk 0:01:57.2]} 16...
b3 {[%clk 0:01:37.6]} 17. Nxf6+ {[%clk 0:01:55.2]} 17... Bxf6 {[%clk 0:01:37.6]}
18. Qe8# {[%clk 0:01:55.2]} 1-0

[Event "*** Titled Tuesday Blitz"]
[Site "Chess.com"]
[Date "2020.05.19"]
[Round "6"]
[White "stoleriu"]
[Black "czasnaszachy"]
[Result "1/2-1/2"]
[WhiteElo "2551"]
[BlackElo "2380"]
[TimeControl "180+1"]
[EndTime "13:05:20 PDT"]
[Termination "Game drawn by agreement"]

1. e4 {[%clk 0:03:00.9]} 1... e5 {[%clk 0:02:59.6]} 2. Nf3 {[%clk 0:03:00.3]}
2... Nc6 {[%clk 0:02:59.7]} 3. Bb5 {[%clk 0:02:58.7]} 3... a6 {[%clk 0:02:59.1]}
4. Ba4 {[%clk 0:02:56.9]} 4... Nf6 {[%clk 0:02:59.2]} 5. d3 {[%clk 0:02:56.4]}
5... d6 {[%clk 0:02:57.2]} 6. c3 {[%clk 0:02:55]} 6... g6 {[%clk 0:02:57.3]} 7.
O-O {[%clk 0:02:53.1]} 7... Bg7 {[%clk 0:02:57.4]} 8. Re1 {[%clk 0:02:53.8]}
8... O-O {[%clk 0:02:57.1]} 9. Bg5 {[%clk 0:02:54.5]} 9... h6 {[%clk 0:02:56.3]}
10. Bh4 {[%clk 0:02:55.1]} 10... Bd7 {[%clk 0:02:55.9]} 11. Nbd2 {[%clk
0:02:54.7]} 11... Qe8 {[%clk 0:02:47.4]} 12. Bxf6 {[%clk 0:02:54.4]} 12... Bxf6
{[%clk 0:02:46.7]} 13. Nf1 {[%clk 0:02:55.3]} 13... Bg7 {[%clk 0:02:44.4]} 14.
Ne3 {[%clk 0:02:54]} 14... Ne7 {[%clk 0:02:41.2]} 15. Bxd7 {[%clk 0:02:41.6]}
15... Qxd7 {[%clk 0:02:41.2]} 16. d4 {[%clk 0:02:42.5]} 16... exd4 {[%clk
0:02:39.9]} 17. cxd4 {[%clk 0:02:43.4]} 17... Rfe8 {[%clk 0:02:37.3]} 18. Rc1
{[%clk 0:02:38]} 18... c6 {[%clk 0:02:37.4]} 19. Nc4 {[%clk 0:02:35.6]} 19...
Rad8 {[%clk 0:02:29.9]} 20. Qb3 {[%clk 0:02:25.8]} 20... Qc7 {[%clk 0:02:24.3]}
21. h3 {[%clk 0:02:19.4]} 21... d5 {[%clk 0:02:22.7]} 22. Qb6 {[%clk 0:01:46.9]}
22... Qxb6 {[%clk 0:02:18.1]} 23. Nxb6 {[%clk 0:01:47.8]} 23... dxe4 {[%clk
0:02:05.5]} 24. Rxe4 {[%clk 0:01:48.7]} 24... Nf5 {[%clk 0:02:00.9]} 25. Rxe8+
{[%clk 0:01:40.6]} 1/2-1/2